Cogmind - Beta 16 @@@ ROGUE MODE // 2025.11.16 @ 20:44:07 // Winter2022/Polymind Player: daniels1231 Result: Destroyed by H-61 Shepherd with Heavy Assault Cannon Performance ------------- Evolutions (3) 1500 Regions Visited (5) 1000 Robots Destroyed (19) 95 Value Destroyed (778) 778 Prototype IDs (0) 0 Alien Tech Used (0) 0 Bonus (2120) 2120 TOTAL SCORE: 5293 Bonus ------- Polymind Skill 1650 Pacifist 470 Cogmind --------- Core Integrity 0/700 Matter 100/100 Energy 239/240 System Corruption 5% Temperature Cool (0) Movement Core (250) Ox4 Location -7/Factory Parts ------- > --- POWER (1) -------- Improved Deuterium Engine > --- PROPULSION (2) --- (None) > --- UTILITY (3) ------ Improved Heat Sink > --- WEAPON (2) ------- Gatling Laser > --- INVENTORY (1) ---- (None) Peak State ------------ > --- POWER ------------ Improved Deuterium Engine > --- PROPULSION ------- Light Treads Light Treads > --- UTILITY ---------- Improved Heat Sink Improved Heat Sink Improved Light Armor Plating > --- WEAPON ----------- Gatling Laser Flak Gun > --- INVENTORY -------- (None) [Rating: 23] Favorites ----------- Power Improved Ion Engine Engine Improved Ion Engine Propulsion Light Treads Treads Light Treads Leg Carbon-fiber Leg Utility Heat Sink Device Heat Sink Protection Light Armor Plating Weapon Beam Rifle Energy Gun Beam Rifle Ballistic Gun Heavy Assault Rifle Build | -11 -10 -9 -9 -8 -7 ------- Run | Yrd Mat Mat Min Mat Fac Slots Evolved . | . . . . . . Power . | . . . . . . Propulsion . | . . . . . . Utility . | . . . . . . Weapon . | . . . . . . Parts Attached . | . . . . . . Power . | . . . . . . Engine . | . . . . . . Core . | . . . . . . Reactor . | . . . . . . Propulsion . | . . . . . . Treads . | . . . . . . Leg . | . . . . . . Wheel . | . . . . . . Hover . | . . . . . . Flight . | . . . . . . Utility . | . . . . . . Device . | . . . . . . Storage . | . . . . . . Processor . | . . . . . . Hackware . | . . . . . . Protection . | . . . . . . Artifact . | . . . . . . Weapon . | . . . . . . Energy Gun . | . . . . . . Energy Cannon . | . . . . . . Ballistic Gun . | . . . . . . Ballistic Cannon . | . . . . . . Launcher . | . . . . . . Special Weapon . | . . . . . . Impact Weapon . | . . . . . . Slashing Weapon . | . . . . . . Piercing Weapon . | . . . . . . Special Melee Weapon . | . . . . . . Unidentified Prototypes . | . . . . . . Parts Lost 26 | . . . . 8 18 Power 3 | . . . . 1 2 Propulsion 8 | . . . . 2 6 Utility 9 | . . . . 3 6 Weapon 6 | . . . . 2 4 Highest Loss Streak 9 | . . . . 4 9 To Critical Strikes . | . . . . . . Average Backups . | . . . . . . Power . | . . . . . . Propulsion . | . . . . . . Utility . | . . . . . . Weapon . | . . . . . . Tool/Special . | . . . . . . Unused Backups . | . . . . . . Power . | . . . . . . Propulsion . | . . . . . . Utility . | . . . . . . Weapon . | . . . . . . Tool/Special . | . . . . . . Average Slot Usage (%) 70 | . . . . 56 90 Engine 8 | . . . . 8 10 Treads 16 | . . . . 12 20 Leg 1 | . . . . . 2 Device 18 | . . . . 15 22 Protection 7 | . . . . 4 9 Energy Gun 9 | . . . . 8 11 Ballistic Gun 7 | . . . . 6 9 Peak Build Rating 23 | . . . . 11 23 Average Rating 9 | . . . . 6 12 On Entrance 1 | . . . . . 11 Avg Prop Armor Cover (%) 28 | . . . . . 28 Naked Turns 270 | . 48 19 133 69 1 Heaviest Build 23 | . . . . 18 23 Greatest Support 40 | 3 3 3 3 40 40 Greatest Overweight (x) 7 | . . . . 3 7 Average Overweight (x) . | . . . . . . Largest Inventory Capacity 1 | . . . . 1 1 Average Capacity . | . . . . . . Most Carried . | . . . . . . Average Carried . | . . . . . . Final Capacity 1 | . . . . 1 1 Final Carried . | . . . . . . Class Distribution -------------------- 74% | Sentry 17% | Cogmind 7% | Grunt Dominant Class ---------------- Cogmind | -10/Materials Cogmind | -9/Materials Cogmind | -9/Mines Sentry | -8/Materials Sentry | -7/Factory Resources | -11 -10 -9 -9 -8 -7 ----------- Run | Yrd Mat Mat Min Mat Fac Matter Collected 113 | . . . . 48 65 Remotely . | . . . . . . Salvage Created 462 | . . . . 224 238 Parts 40 | . . . . 13 27 Haulers Intercepted . | . . . . . . Recyclers Shooed 1 | . . . . . 1 Parts Field Recycled . | . . . . . . Retrieved Matter . | . . . . . . Parts Self-Destructed . | . . . . . . Prevented . | . . . . . . Parts Restored . | . . . . . . Kills | -11 -10 -9 -9 -8 -7 ------- Run | Yrd Mat Mat Min Mat Fac Combat Hostiles Destroyed 17 | . . . . 7 10 Guns 17 | . . . . 7 10 Classes Destroyed 8 | . . . . 3 5 Operator 1 | . . . . . 1 Watcher 1 | . . . . . 1 Swarmer 3 | . . . . 3 . Grunt 8 | . . . . 3 5 Sentry 2 | . . . . 1 1 Specialist 2 | . . . . . 2 Hunter 1 | . . . . . 1 Programmer 1 | . . . . . 1 Best Kill Streak 6 | . . . . 6 4 Combat Bots Only 6 | . . . . 6 3 Max Kills in Single Turn 1 | . . . . 1 1 Gunslinging . | . . . . . . Exploded . | . . . . . . Melee . | . . . . . . Uniques/NPCs Destroyed . | . . . . . . Combat | -11 -10 -9 -9 -8 -7 -------- Run | Yrd Mat Mat Min Mat Fac Hostile Shots Fired 329 | . 5 8 12 109 195 Missed 87 | . 2 3 6 27 49 Hits 242 | . 3 5 6 82 146 Projectile 242 | . 3 5 6 82 146 AOE 9 | . . . 9 . . Critical Strikes 12 | . . . . 5 7 Damage Taken 4125 | . 34 74 320 1045 2652 Core 1466 | . 34 74 320 290 748 Absorbed by Shields . | . . . . . . Core Remaining (%) 58 | 100 86 . 1 47 . Volleys Fired 82 | . . . . 28 54 Largest 2 | . . . . 2 2 Hottest 108 | . . . . 79 108 Shots Fired 137 | . . . . 49 88 Gun 137 | . . . . 49 88 Cannon . | . . . . . . Launcher . | . . . . . . Special . | . . . . . . Kinetic 56 | . . . . 21 35 Thermal 81 | . . . . 28 53 Explosive . | . . . . . . Electromagnetic . | . . . . . . Robot Hit Streak 12 | . . . . 5 12 Robot Miss Streak 5 | . . . . 3 5 Penetration Max . | . . . . . . Secondary Targets 3 | . . . . 2 1 Max Gunslinging Chain 1 | . . . . 1 1 Shots Hit Robots 99 | . . . . 33 66 Core Hits 61 | . . . . 12 49 Critical Kills . | . . . . . . Critical Parts Destroyed 1 | . . . . 1 . Critical Strikes 9 | . . . . 8 1 Burn 8 | . . . . 7 1 Destroy 1 | . . . . 1 . Melee Attacks . | . . . . . . Impact . | . . . . . . Slashing . | . . . . . . Piercing . | . . . . . . Sneak Attacks . | . . . . . . Combat Hostiles . | . . . . . . Follow-up Attacks . | . . . . . . Damage Inflicted 1829 | . . . 12 562 1255 Guns 1729 | . . . . 552 1177 Cannons . | . . . . . . Explosions . | . . . . . . Melee . | . . . . . . Ramming 100 | . . . 12 10 78 Kinetic 680 | . . . . 269 411 Thermal 1049 | . . . . 283 766 Explosive . | . . . . . . Electromagnetic . | . . . . . . Impact . | . . . . . . Slashing . | . . . . . . Piercing . | . . . . . . Highest Corruption 5 | . . . . . 5 Average Corruption 4 | . . . . . 4 Corruption Purged . | . . . . . . Corruption Blocked . | . . . . . . Effects 4 | . . . . . 4 Message Errors 1 | . . . . . 1 Heat Flow Errors 2 | . . . . . 2 Weapon Failures 1 | . . . . . 1 Overload Shots . | . . . . . . Overflow Damage . | . . . . . . Projectiles . | . . . . . . Explosions . | . . . . . . Melee . | . . . . . . Knockbacks . | . . . . . . Impact . | . . . . . . Kinetic . | . . . . . . Secondary . | . . . . . . Self-Inflicted Damage 32 | . . . 6 4 22 Shots . | . . . . . . Rammed 20 | . . . 2 3 15 Targets Rammed 35 | . . . 2 3 30 Kicked 15 | . . . . . 15 Crushed . | . . . . . . Highest Temperature 507 | . . . . 185 507 Average Temperature 150 | . . . . 83 183 Received Heat Transfer 1266 | . 18 21 . 468 759 Effects 5 | . . . . . 5 Energy Bleed 1 | . . . . . 1 Interference 2 | . . . . . 2 Short Circuit 1 | . . . . . 1 Damage (minor) 1 | . . . . . 1 Siege Activations . | . . . . . . Martial Activations . | . . . . . . Shielding Activations . | . . . . . . Robots Disrupted . | . . . . . . Combat Hostiles . | . . . . . . Robots Corrupted . | . . . . . . Combat Hostiles . | . . . . . . Parts Fried . | . . . . . . Impact Corruptions . | . . . . . . Robots Melted . | . . . . . . Combat Hostiles . | . . . . . . Parts Melted 5 | . . . . 3 2 Heat Transferred 3042 | . . . . 1221 1821 Parts Sabotaged . | . . . . . . Parts Stolen . | . . . . . . Parts Stripped . | . . . . . . Power Chain Reactions . | . . . . . . Alert | -11 -10 -9 -9 -8 -7 ------- Run | Yrd Mat Mat Min Mat Fac Maximum Alert Level . | . . . . . . Low Security (%) 100 | 100 100 100 100 100 100 Level 1 . | . . . . . . Level 2 . | . . . . . . Level 3 . | . . . . . . Level 4 . | . . . . . . Level 5 . | . . . . . . High Security . | . . . . . . Max Security . | . . . . . . Peak Influence 160 | . . . . 160 79 Initial 29 | . . . . . 29 Average 21 | . . . . 57 15 Influence Increases 552 | . . . . 230 322 Destroy 0b10 Robot/C 340 | . . . . 140 200 Destroy 0b10 Robot/NC 10 | . . . . . 10 Destroy Leader 82 | . . . . 30 52 Lose Combat Pursuer 120 | . . . . 60 60 Influence Decreases 541 | . . . . 165 376 Entered New Map 36 | . . . . . 36 Time Decay 322 | . . . . 80 242 Lost Part 166 | . . . . 80 86 Miscellaneous 17 | . . . . 5 12 Squads Dispatched 7 | . . . . . 7 Investigation 1 | . . . . . 1 Extermination 2 | . . . . . 2 Reinforcement 4 | . . . . . 4 Assault . | . . . . . . Garrison . | . . . . . . Intercept . | . . . . . . Searches Triggered . | . . . . . . Construction Impeded . | . . . . . . Haulers Reinforced . | . . . . . . Active Scanning Responses . | . . . . . . Cargo Convoy Interrupts . | . . . . . . Stealth | -11 -10 -9 -9 -8 -7 --------- Run | Yrd Mat Mat Min Mat Fac Distress Signals 3 | . 1 . . . 2 Communications Jammed . | . . . . . . Distress Signals . | . . . . . . Times Spotted 51 | . 4 4 3 12 28 Peak Tracking Total 5 | . 4 3 2 4 5 Tactical Retreats 4 | . . . . 2 2 Traps | -11 -10 -9 -9 -8 -7 ------- Run | Yrd Mat Mat Min Mat Fac Traps Triggered 1 | . . . . . 1 Indirectly . | . . . . . . Trap Hack Attempts . | . . . . . . Triggered . | . . . . . . Disarmed . | . . . . . . Reprogrammed . | . . . . . . Reused . | . . . . . . Traps Extracted . | . . . . . . Installed . | . . . . . . Triggered . | . . . . . . Machines | -11 -10 -9 -9 -8 -7 ---------- Run | Yrd Mat Mat Min Mat Fac Machines Disabled . | . . . . . . Max in Single Turn . | . . . . . . Garrison Access 1 | . . . . . 1 Machines Repaired . | . . . . . . Machines Dismantled . | . . . . . . Machines Sabotaged . | . . . . . . Overloaded Fab Kills . | . . . . . . Hacking | -11 -10 -9 -9 -8 -7 --------- Run | Yrd Mat Mat Min Mat Fac Machines Accessed 1 | . . . . . 1 Terminals . | . . . . . . Fabricators . | . . . . . . Repair Stations . | . . . . . . Recycling Units . | . . . . . . Scanalyzers . | . . . . . . Garrison Access 1 | . . . . . 1 Total Hacks 1 | . . . . . 1 Successful 1 | . . . . . 1 Failed . | . . . . . . Catastrophic . | . . . . . . Database Lockouts . | . . . . . . Manual . | . . . . . . Terminals . | . . . . . . Fabricators . | . . . . . . Repair Stations . | . . . . . . Recycling Units . | . . . . . . Scanalyzers . | . . . . . . Garrison Access 1 | . . . . . 1 Terminal Hacks . | . . . . . . Fabricator Hacks . | . . . . . . Repair Station Hacks . | . . . . . . Recycling Unit Hacks . | . . . . . . Scanalyzer . | . . . . . . Garrison Access Hacks 1 | . . . . . 1 Seal Access 1 | . . . . . 1 Unauthorized Hacks . | . . . . . . Terminals . | . . . . . . Fabricators . | . . . . . . Repair Stations . | . . . . . . Recycling Units . | . . . . . . Scanalyzers . | . . . . . . Garrison Access . | . . . . . . Data Cores Recovered . | . . . . . . Used . | . . . . . . Hacking Detections . | . . . . . . Full Trace Events . | . . . . . . Feedback Events . | . . . . . . Feedback Blocked . | . . . . . . Robot Schematics Acquired . | . . . . . . Robots Built . | . . . . . . Authchips . | . . . . . . Time . | . . . . . . Total Robot Build Rating . | . . . . . . Part Schematics Acquired . | . . . . . . Parts Built . | . . . . . . Authchips . | . . . . . . Time . | . . . . . . Total Part Build Rating . | . . . . . . Part Studies Acquired . | . . . . . . Parts Repaired . | . . . . . . Time . | . . . . . . Parts Recycled . | . . . . . . Recycled Matter . | . . . . . . Retrieved Matter . | . . . . . . Retrieved Components . | . . . . . . Parts Scanalyzed . | . . . . . . Part Schematics Acquired . | . . . . . . Parts Damaged . | . . . . . . Bothacking | -11 -10 -9 -9 -8 -7 ------------ Run | Yrd Mat Mat Min Mat Fac Used RIF Installer . | . . . . . . Robots Hacked 4 | . . . . 2 2 Non-combat . | . . . . . . Combat 4 | . . . . 2 2 Robot Hacks Applied 8 | . . . . 4 4 find_shortcuts 4 | . . . . 2 2 find_garrison 4 | . . . . 2 2 Relay Couplers Released . | . . . . . . Fabnet Peak Effective % . | . . . . . . Robots Rewired . | . . . . . . Allies Hacked . | . . . . . . Hacks Repelled . | . . . . . . Allies | -11 -10 -9 -9 -8 -7 -------- Run | Yrd Mat Mat Min Mat Fac Total Allies . | . . . . . . Largest Group . | . . . . . . Highest-Rated Group . | . . . . . . Highest-Rated Ally . | . . . . . . Total Orders . | . . . . . . Ally Attacks . | . . . . . . Total Damage . | . . . . . . Kills . | . . . . . . Allies Corrupted . | . . . . . . Allies Melted . | . . . . . . Intel | -11 -10 -9 -9 -8 -7 ------- Run | Yrd Mat Mat Min Mat Fac Active Infowar (turns) . | . . . . . . Robot Analysis Total 3 | . . . . 1 2 Derelict Logs Recovered . | . . . . . . Drone Launches . | . . . . . . Drone Recoveries . | . . . . . . Exploration | -11 -10 -9 -9 -8 -7 ------------- Run | Yrd Mat Mat Min Mat Fac Turns Passed 1577 | 16 48 19 133 297 1064 Spaces Moved 1293 | 31 95 38 262 246 621 Core 748 | 31 95 38 262 183 139 Treads 542 | . . . . 63 479 Legs 3 | . . . . . 3 Wheels . | . . . . . . Hover . | . . . . . . Flight . | . . . . . . Fastest Speed 50 | 50 50 50 50 50 50 Average Speed 101 | 50 50 50 50 88 142 Slowest Speed 400 | 50 50 50 50 200 400 Overloaded Moves . | . . . . . . Propulsion Burnouts . | . . . . . . Robots Hopped . | . . . . . . Potential Cave-ins . | . . . . . . Cave-ins Triggered . | . . . . . . Exploration Rate (%) 20 | 2 23 9 49 22 20 Regions Visited 5 Branch Regions 1 Pre-discovered Areas . | . . . . . . Known Exits Taken . | . . . . . . Unknown Exits Taken 5 | 1 1 1 1 1 . Scrap Searched . | . . . . . . Spaces Dug . | . . . . . . Terrain Destroyed . | . . . . . . Melee . | . . . . . . Projectile . | . . . . . . AOE . | . . . . . . Terrain Rammed . | . . . . . . Walls Destroyed . | . . . . . . Machines Disabled . | . . . . . . Actions | -11 -10 -9 -9 -8 -7 --------- Run | Yrd Mat Mat Min Mat Fac Total 1408 | 30 94 37 263 276 708 Wait 3 | . . . . . 3 Move 1288 | 30 94 37 261 245 621 Hop . | . . . . . . Pick Up . | . . . . . . Fast Attach . | . . . . . . Attach . | . . . . . . Detach . | . . . . . . Swap . | . . . . . . Drop . | . . . . . . Fire 82 | . . . . 28 54 Melee . | . . . . . . Ram 18 | . . . 2 3 13 Kick 15 | . . . . . 15 Crush 2 | . . . . . 2 Escape Stasis . | . . . . . . Rewire . | . . . . . . Trap . | . . . . . . Miscellaneous . | . . . . . . Route ------- -11/Scrapyard -10/Materials -9/Materials -9/Mines -8/Materials -7/Factory (discovered 1 exit: [*Fac]) History --------- Turn | Location | Event 5 | -11/Scrapyard | Discovered new exit (range 13) 17 | -11/Scrapyard | Entered Materials 57 | -10/Materials | Discovered new exit (range 16) 65 | -10/Materials | Entered another Materials area 79 | -9/Materials | Discovered new exit (range 11) 84 | -9/Materials | Entered Mines 111 | -9/Mines | Joined a pair of Derelicts in attacking an 0b10 outpost 196 | -9/Mines | Discovered new exit (range 16) 210 | -9/Mines | Core integrity fell below 50% 212 | -9/Mines | Core integrity fell below 20% 217 | -9/Mines | Entered Materials 438 | -8/Materials | Lost 4 parts (2n1u1w) 472 | -8/Materials | Core integrity fell below 50% 499 | -8/Materials | Discovered new exit (range 10) 502 | -8/Materials | Lost 3 parts (1p1u1w) 514 | -8/Materials | Entered Factory 1252 | -7/Factory | Lost 9 parts (2p2n3u2w) 1261 | -7/Factory | Core integrity fell below 50% 1312 | -7/Factory | Lost 3 parts (1n1u1w) 1526 | -7/Factory | Discovered new exit (range 9) 1564 | -7/Factory | Core integrity fell below 20% 1578 | -7/Factory | Destroyed by H-61 Shepherd with Heavy Assault Cannon Last Messages --------------- 01526_ EXIT=FOUND 01526_ Penetrated by Slug. 01530_ Lgt. Treads destroyed. 01533_ Acquired 2 matter. 01541_ Lgt. Treads destroyed. 01541_ Knocked back. 01547_ Penetrated by Slug. 01547_ Imp. Light Armor Plating destroyed. 01549_ Knocked back. 01553_ Flak Gun destroyed. 01553_ Knocked back. 01555_ U-05 Engineer builds a Wall. 01558_ Penetrated by Slug. 01558_ Imp. Heat Sink destroyed. 01558_ U-05 Engineer destroyed. 01568_ U-05 Engineer builds a Wall. 01570_ ALERT: Potential suspicious activity detected, Programmers report to Factory Zone 2B. 01578_ Penetrated by Slug. Map ----- +----------------------------------------------------+ | ????????????????????????????????#!| #???????? | | ????????????????????????????????# #???????? | | ????????????????????????????????# #???????? | | ????????????????????????????????# ####+#### | | ??####??????????????????????????# + | | ####???????????????????????# # | | """ # ?????????????#?????????# + | | "T" # """???????????" ????????# # | | " " # """"??????????" ?##?????# # | | # """???????????" ? ?????# # ###### | | """ # """??????????? ? ?????# # #????# | | """ # ????????????? ? ??????# # #????# | | """ # ! ????????????? ? ??????# #+###### | | # ?????????????? # ??????# # ## | | ##+### ?????????????? "!??????# ! # ## | | ##+#########+#########+#???# # ## | | %=$%#???########## ## | | %!*#??????# ######### | | =!=#??????#/ ## | | ##+#####+##########!#??????# ## | | ## ### !#???#%#??????# ## | | ?# #?#/ """"""" #???#%#??????# / ## | | ## ### """"""" #???#%##?????# ## | | # ## / """"""" #???#%##?????# ## ### | | " ## """"""" #??##%##??#??####+##### #?? | | # ## #??#/ Y## #?????# #?? | | ##+#################??# H % #?????# #?? | | ?# #??????????# %## #?????# = #?? | | ?# " #??????????##+##??#?????# =%! % #?? | | ?# "" #??????????? ?????????# #####! #?? | | ?# "" #??????????? ?????????# #???# #?? | | ## #?????????? = = ????????# #???# #?? | | + #?????????? ?????####+##### #?? | | ## #?????????[ ! #????# #*[ #?? | | ?# #?????????#######????# + [ #?? | | ?##/########????????????????????# #!= #?? | | ??? #???????????????????????????# # #?? | | ??? ???????????????????????????# # #?? | | ???+#???????????????????????????# # #?? | | ????????????????????????????????# # ? | | ????????????????????????????????# # | | ????????????????????????????????# =+ | | ????????????????????????????????# # | | ????????????????????????????????# # | | ????????????????????????????????# ####+#### | | ????????????????????????????????# #???????? | | ????????????????????????????????# [ #???????? | | ??????????????????????????####### #???????? | | ??????????????????????????# # #???????? | | ??????????????????????????# """ # #???????? | +----------------------------------------------------+ Best States ------------- Heat Dissipation 43 Energy Generation 23 Energy Capacity 240 Matter Stores 100 Matter Capacity 100 Sight Range 16 Terrain Scan Density 10 Armor Coverage 150 Resistance: EX 50 Resistance: I 25 Evasion (%) 50 Recoil Reduction 2 Item Schematics ----------------- None Robot Schematics ------------------ None Fabricated ------------ Nothing Repaired ---------- Nothing Studied --------- None Alien Tech Used ----------------- None Achievements -------------- Close Call Challenges ------------ None Polymind | -11 -10 -9 -9 -8 -7 ---------- Run | Yrd Mat Mat Min Mat Fac Hosts 4 | . . . . 2 2 Combat Hostiles 4 | . . . . 2 2 Allies . | . . . . . . Unique Host Classes 2 | . . . . 1 1 Average Host Suspicion 82 | . . . . 87 81 Unsuspicious Activity 47 | . . . . 22 25 Returns to Shadow . | . . . . . . Fuzzy Dispatches 2 | . . . . . 2 Protomatter Created 248 | . . . 19 46 183 Used 142 | . . . . 46 96 Decayed 18 | . . . . 4 14 Highest Spend 51 | . . . . 23 51 Top 5 Hosts by Kills: Y-45 Defender (-8/Materials: 7) Y-45 Defender (-8/Materials: 5) Y-54 Guardian (-7/Factory: 4) G-50 Soldier (-7/Factory: 1) Game ------ Seed StormGraphenePod Manual? 0 Play Time 00:15:51 Cumulative 11.0 hours Start 2025.11.16 @ 20:32:50 End 2025.11.16 @ 20:44:07 Sessions 1 Manual Loads 0 Difficulty Rogue Special Mode Winter2022/Polymind Game No. 23 Rogue 19 Adventurer 4 Explorer 0 Win Type - Total 0 Types 0/0/0/0/0/0/0/0/0/0 Lore% 3 Gallery% 15 Achievement% 13 Wizard Run 0 Options --------- Layout 2 ASCII 0 Keyboard 0 Movement Arrows Keybinds 1 Fullscreen 2 Font 32/SmallcapsGlow Map View 50x44 Zoom Use 0% Tactical HUD 1 Map Filters NONE Filters NONE Steam 1 RUN: 7bf5cfcb-299a-4b67-9cc8-5375d51f36d2